fUST/lending_fUST_20260517
["ID","MTS","AMOUNT","RATE_DAILY","PERIOD"]
[422493297,1778995838000,-500.0,8.708e-05,2]
[422493293,1778995838000,-500.0,8.708e-05,2]
[422493299,1778995838000,-251.10177306,8.708e-05,2]
[422493291,1778995838000,-800.0,8.687e-05,2]
[422493295,1778995838000,-540.52365427,8.708e-05,2]
[422493290,1778995838000,-3815.90078011,8.605e-05,2]
[422494940,1778997032000,-406.30584553,6.494e-05,2]
[422494942,1778997032000,-1327.74208729,6.494e-05,2]
[422494941,1778997032000,-763.77151649,6.494e-05,2]
[422494945,1778997032000,-79.1838418,6.56e-05,2]
[422494943,1778997032000,-2502.18055069,6.494e-05,2]
[422494972,1778997038000,-919.01002269,8.1e-05,2]
[422494978,1778997038000,-919.01002269,8.2e-05,2]
[422494967,1778997038000,-1537.94106095,8e-05,2]
[422494970,1778997038000,-800.0,8.064e-05,2]
[422494969,1778997038000,-500.0,8e-05,2]
[422494971,1778997038000,-160.0,8.092e-05,8]
[422494975,1778997038000,-300.424,8.173e-05,2]
[422494977,1778997038000,-919.01002269,8.2e-05,2]
[422494982,1778997038000,-364.92770766,8.2e-05,2]
[422494973,1778997038000,-1537.94106095,8.1e-05,2]
[422494974,1778997038000,-612.53060374,8.1e-05,2]
[422494979,1778997038000,-1537.94106095,8.2e-05,2]
[422494980,1778997038000,-1537.94106095,8.2e-05,2]
[422494981,1778997038000,-247.60289608,8.2e-05,2]
[422494984,1778997038000,-396.99591478,8.2e-05,2]
[422494968,1778997038000,-612.53060374,8e-05,2]
[422494983,1778997038000,-215.53468896,8.2e-05,2]
[422494987,1778997038000,-612.53060374,8.3e-05,2]
[422494976,1778997038000,-160.0,8.199e-05,9]
[422494966,1778997038000,-919.01002269,8e-05,2]
[422494956,1778997038000,-443.0,7.329e-05,2]
[422494961,1778997038000,-160.0,7.663e-05,4]
[422494986,1778997038000,-1537.94106095,8.3e-05,2]
[422494946,1778997038000,-820.992352,6.56e-05,2]
[422494951,1778997038000,-500.0,7.026e-05,2]
[422494949,1778997038000,-453.59903804,6.66e-05,2]
[422494947,1778997038000,-4099.8238062,6.56e-05,2]
[422494948,1778997038000,-300.0,6.659e-05,2]
[422494950,1778997038000,-160.0,6.899e-05,2]
[422494953,1778997038000,-300.0,7.324e-05,2]
[422494963,1778997038000,-160.0,7.877e-05,6]
[422494952,1778997038000,-152.0,7.158e-05,7]
[422494955,1778997038000,-1420.69,7.329e-05,2]
[422494954,1778997038000,-2220.232,7.329e-05,2]
[422494957,1778997038000,-150.304,7.329e-05,2]
[422494960,1778997038000,-160.0,7.556e-05,3]
[422494958,1778997038000,-150.719,7.329e-05,2]
[422494964,1778997038000,-500.0,7.917e-05,2]
[422494959,1778997038000,-291.6316,7.401e-05,2]
[422494962,1778997038000,-160.0,7.77e-05,5]
[422494965,1778997038000,-160.0,7.985e-05,7]
[422494990,1778997038000,-500.0,8.334e-05,2]
[422495030,1778997038000,-600.359,8.605e-05,2]
[422494989,1778997038000,-500.0,8.334e-05,2]
[422495013,1778997038000,-1133.65466749,8.335e-05,2]
[422495015,1778997038000,-1133.65466749,8.335e-05,2]
[422495014,1778997038000,-1133.65466749,8.335e-05,2]
[422495017,1778997038000,-1133.65466749,8.335e-05,2]
[422495016,1778997038000,-1133.65466749,8.335e-05,2]
[422495018,1778997038000,-1133.65466749,8.335e-05,2]
[422495019,1778997038000,-129543.47437826,8.336e-05,2]
[422495020,1778997038000,-160.0,8.414e-05,11]
[422495012,1778997038000,-1133.65466749,8.335e-05,2]
[422495027,1778997038000,-162.81698026,8.454e-05,2]
[422495021,1778997038000,-1188.0815803,8.436e-05,2]
[422495023,1778997038000,-500.0,8.451e-05,2]
[422495029,1778997038000,-317.12318351,8.521e-05,5]
[422495026,1778997038000,-163.02422954,8.454e-05,2]
[422495025,1778997038000,-299.67066817,8.451e-05,2]
[422495024,1778997038000,-500.0,8.451e-05,2]
[422495028,1778997038000,-160.0,8.521e-05,12]
[422494985,1778997038000,-919.01002269,8.3e-05,2]
[422495022,1778997038000,-31010.2846431,8.436e-05,2]
[422495011,1778997038000,-1133.65466749,8.335e-05,2]
[422495007,1778997038000,-1049.68024768,8.335e-05,2]
[422495010,1778997038000,-1133.65466749,8.335e-05,2]
[422494988,1778997038000,-160.0,8.306e-05,10]
[422494991,1778997038000,-251.10177306,8.334e-05,2]
[422494992,1778997038000,-540.52365427,8.334e-05,2]
[422495009,1778997038000,-1133.65466749,8.335e-05,2]
[422495004,1778997038000,-1049.68024768,8.335e-05,2]
[422494996,1778997038000,-1049.68024768,8.335e-05,2]
[422494995,1778997038000,-1049.68024768,8.335e-05,2]
[422494994,1778997038000,-1049.68024768,8.335e-05,2]
[422494997,1778997038000,-1049.68024768,8.335e-05,2]
[422494993,1778997038000,-500.0,8.335e-05,2]
[422494999,1778997038000,-1049.68024768,8.335e-05,2]
[422495000,1778997038000,-1049.68024768,8.335e-05,2]
[422495001,1778997038000,-1049.68024768,8.335e-05,2]
[422495002,1778997038000,-1049.68024768,8.335e-05,2]
[422495006,1778997038000,-1049.68024768,8.335e-05,2]
[422495003,1778997038000,-1049.68024768,8.335e-05,2]
[422495005,1778997038000,-1049.68024768,8.335e-05,2]
[422495008,1778997038000,-1049.68024768,8.335e-05,2]
[422494998,1778997038000,-1049.68024768,8.335e-05,2]
[422495043,1778997039000,-7605.56224928,8.948e-05,2]
[422495036,1778997039000,-161.67668242,8.754e-05,2]
[422495034,1778997039000,-7047.99493843,8.709e-05,2]
[422495037,1778997039000,-160.0,8.755e-05,2]
[422495033,1778997039000,-535.24686488,8.66e-05,2]
[422495031,1778997039000,-800.0,8.608e-05,2]
[422495035,1778997039000,-160.0,8.754e-05,2]
[422495039,1778997039000,-475.82346404,8.948e-05,2]
[422495040,1778997039000,-1903.29385618,8.948e-05,2]
[422495041,1778997039000,-573.97259507,8.948e-05,2]
[422495042,1778997039000,-4282.4111764,8.948e-05,2]
[422495038,1778997039000,-500.0,8.883e-05,2]
[422495032,1778997039000,-500.0,8.609e-05,2]
[422495045,1778997039000,-311102.08364697,9e-05,2]
[422495048,1778997039000,-3108.94147761,9.041e-05,2]
[422495056,1778997039000,-168.311009,9.589e-05,2]
[422495047,1778997039000,-161.97,9.014e-05,2]
[422495053,1778997039000,-8446.184125,9.5e-05,2]
[422495044,1778997039000,-2293.59448989,8.948e-05,2]
[422495051,1778997039000,-3107.0,9.2e-05,2]
[422495054,1778997039000,-168.311009,9.589e-05,2]
[422495049,1778997039000,-10000.0,9.123e-05,2]
[422495050,1778997039000,-500.0,9.157e-05,2]
[422495046,1778997039000,-300.000001,9e-05,2]
[422495052,1778997039000,-500.0,9.431e-05,2]
[422495057,1778997039000,-168.311009,9.589e-05,2]
[422495059,1778997039000,-158500.85819049,9.7e-05,2]
[422495060,1778997039000,-31616.48002696,9.7e-05,2]
[422495058,1778997039000,-3223.97231228,9.589e-05,2]
[422495055,1778997039000,-168.311009,9.589e-05,2]
[422495078,1778997043000,-659.7749991,9.7e-05,2]
[422495077,1778997043000,-2185.89669367,9.7e-05,2]
[422495080,1778997043000,-6712.34282752,9.7e-05,2]
[422495081,1778997043000,-499.48143251,9.7e-05,2]
[422495079,1778997043000,-3186.23676031,9.7e-05,2]
[422495083,1778997046000,-6724.22369842,9.7e-05,2]
[422495208,1778997122000,163.126382,4.426e-05,2]
[422495252,1778998233000,-406.31779836,5.866e-05,2]
[422495339,1778998238000,-778.86274378,6.552e-05,2]
[422495342,1778998238000,-778.86274378,6.552e-05,2]
[422495344,1778998238000,-778.86274378,6.552e-05,2]
[422495346,1778998238000,-778.86274378,6.552e-05,2]
[422495348,1778998238000,-778.86274378,6.552e-05,2]
[422495360,1778998238000,-778.86274378,6.552e-05,2]
[422495362,1778998238000,-778.86274378,6.552e-05,2]
[422495364,1778998238000,-778.86274378,6.552e-05,2]
[422495352,1778998238000,-778.86274378,6.552e-05,2]
[422495350,1778998238000,-778.86274378,6.552e-05,2]
[422495358,1778998238000,-778.86274378,6.552e-05,2]
[422495331,1778998238000,-500.0,6.293e-05,2]
[422495315,1778998238000,-1200.0,6.277e-05,2]
[422495356,1778998238000,-778.86274378,6.552e-05,2]
[422495329,1778998238000,-500.0,6.293e-05,2]
[422495333,1778998238000,-500.0,6.293e-05,2]
[422495337,1778998238000,-2763.53827841,6.48e-05,2]
[422495327,1778998238000,-1270.29251137,6.28e-05,2]
[422495324,1778998238000,-300.0,6.279e-05,2]
[422495322,1778998238000,-300.0,6.278e-05,2]
[422495320,1778998238000,-300.0,6.278e-05,2]
[422495318,1778998238000,-300.0,6.278e-05,2]
[422495313,1778998238000,-451.28122256,5.955e-05,2]
[422495311,1778998238000,-5000.0,5.925e-05,2]
[422495309,1778998238000,-2132.27690063,5.866e-05,2]
[422495335,1778998238000,-268.62116485,6.293e-05,2]
[422495354,1778998238000,-778.86274378,6.552e-05,2]
[422495409,1778998238000,-3746.72988539,7.059e-05,2]
[422495366,1778998238000,-778.86274378,6.552e-05,2]
[422495419,1778998238000,-3000.0,7.14e-05,30]
[422495417,1778998238000,-3000.0,7.13e-05,30]
[422495421,1778998238000,-3000.0,7.15e-05,30]
[422495415,1778998238000,-3000.0,7.12e-05,30]
[422495413,1778998238000,-3000.0,7.11e-05,30]
[422495411,1778998238000,-3000.0,7.1e-05,30]
[422495407,1778998238000,-420.0,6.907e-05,2]
[422495405,1778998238000,-331.0,6.905e-05,2]
[422495403,1778998238000,-3557.65293311,6.88e-05,2]
[422495401,1778998238000,-3359.04082576,6.78e-05,2]
[422495399,1778998238000,-3160.5399766,6.68e-05,2]
[422495397,1778998238000,-163.126382,6.553e-05,2]
[422495395,1778998238000,-255321.18,6.553e-05,2]
[422495367,1778998238000,-778.86274378,6.552e-05,2]
[422495391,1778998238000,-807.18502537,6.552e-05,2]
[422495393,1778998238000,-932.74714045,6.552e-05,2]
[422495371,1778998238000,-778.86274378,6.552e-05,2]
[422495377,1778998238000,-807.18502537,6.552e-05,2]
[422495379,1778998238000,-807.18502537,6.552e-05,2]
[422495382,1778998238000,-807.18502537,6.552e-05,2]
[422495369,1778998238000,-778.86274378,6.552e-05,2]
[422495383,1778998238000,-807.18502537,6.552e-05,2]
[422495389,1778998238000,-807.18502537,6.552e-05,2]
[422495373,1778998238000,-807.18502537,6.552e-05,2]
[422495375,1778998238000,-807.18502537,6.552e-05,2]
[422495385,1778998238000,-807.18502537,6.552e-05,2]
[422495387,1778998238000,-807.18502537,6.552e-05,2]
[422495484,1778998239000,-162.380719,8.66e-05,2]
[422495475,1778998239000,-500.0,8.219e-05,2]
[422495477,1778998239000,-198.39820151,8.219e-05,2]
[422495480,1778998239000,-500.0,8.493e-05,2]
[422495486,1778998239000,-537.6845,8.66e-05,2]
[422495479,1778998239000,-500.0,8.219e-05,2]
[422495490,1778998239000,-151.0,8.66e-05,2]
[422495488,1778998239000,-160.90276947,8.66e-05,2]
[422495482,1778998239000,-5713.17995021,8.53e-05,2]
[422495494,1778998239000,-151.0,8.66e-05,2]
[422495499,1778998239000,-151.0,8.66e-05,2]
[422495497,1778998239000,-151.0,8.66e-05,2]
[422495496,1778998239000,-151.0,8.66e-05,2]
[422495501,1778998239000,-151.0,8.66e-05,2]
[422495503,1778998239000,-151.0,8.66e-05,2]
[422495473,1778998239000,-500.0,8.219e-05,2]
[422495500,1778998239000,-151.0,8.66e-05,2]
[422495502,1778998239000,-151.0,8.66e-05,2]
[422495505,1778998239000,-217.5174099,8.66e-05,2]
[422495504,1778998239000,-151.0,8.66e-05,2]
[422495492,1778998239000,-151.0,8.66e-05,2]
[422495471,1778998239000,-500.0,8.104e-05,2]
[422495465,1778998239000,-407.04,7.71e-05,2]
[422495459,1778998239000,-298.278,7.556e-05,2]
[422495423,1778998239000,-3000.0,7.16e-05,30]
[422495425,1778998239000,-3000.0,7.17e-05,30]
[422495435,1778998239000,-3000.0,7.22e-05,30]
[422495437,1778998239000,-5168.984511,7.23e-05,30]
[422495429,1778998239000,-3000.0,7.19e-05,30]
[422495439,1778998239000,-160.0,7.348e-05,2]
[422495433,1778998239000,-3000.0,7.21e-05,30]
[422495431,1778998239000,-3000.0,7.2e-05,30]
[422495441,1778998239000,-160.0,7.349e-05,2]
[422495443,1778998239000,-161.67668242,7.349e-05,2]
[422495445,1778998239000,-3756.16026344,7.353e-05,2]
[422495447,1778998239000,-500.0,7.375e-05,2]
[422495463,1778998239000,-300.0,7.598e-05,2]
[422495461,1778998239000,-152.0,7.577e-05,7]
[422495451,1778998239000,-760.0,7.428e-05,2]
[422495467,1778998239000,-4909.56253287,7.941e-05,2]
[422495449,1778998239000,-649.964,7.428e-05,2]
[422495507,1778998239000,-151.0,8.66e-05,2]
[422495453,1778998239000,-185.0,7.428e-05,2]
[422495455,1778998239000,-443.0,7.428e-05,2]
[422495457,1778998239000,-600.272,7.488e-05,2]
[422495469,1778998239000,-532.51184262,7.955e-05,2]
[422495506,1778998239000,-151.0,8.66e-05,2]
[422495512,1778998239000,-151.0,8.66e-05,2]
[422495509,1778998239000,-151.0,8.66e-05,2]
[422495538,1778998239000,-500.0,9.315e-05,2]
[422495537,1778998239000,-6648.6969857,9.218e-05,2]
[422495536,1778998239000,-8755.4142983,9.218e-05,2]
[422495539,1778998239000,-937.84567194,9.364e-05,2]
[422495547,1778998239000,-151.0,9.6e-05,2]
[422495543,1778998239000,-288.47864415,9.506e-05,2]
[422495542,1778998239000,-404.89496929,9.499e-05,2]
[422495548,1778998239000,-196.040381,9.6e-05,2]
[422495540,1778998239000,-7239.2145203,9.412e-05,2]
[422495535,1778998239000,-6830.2380638,9.123e-05,2]
[422495541,1778998239000,-2000.0,9.45e-05,2]
[422495544,1778998239000,-500.0,9.589e-05,2]
[422495546,1778998239000,-151.0,9.6e-05,2]
[422495549,1778998239000,-160.0,9.604e-05,2]
[422495550,1778998239000,-539.325629,9.604e-05,2]
[422495552,1778998239000,-160.0,9.652e-05,2]
[422495551,1778998239000,-918.651258,9.604e-05,2]
[422495553,1778998239000,-4576.960729,9.652e-05,2]
[422495555,1778998239000,-635366.47120338,9.7e-05,2]
[422495554,1778998239000,-8993.921459,9.652e-05,2]
[422495545,1778998239000,-210.29953602,9.6e-05,2]
[422495534,1778998239000,-500.0,9.041e-05,2]
[422495532,1778998239000,-25512.37494904,8.959e-05,2]
[422495529,1778998239000,-38000.0,8.95e-05,2]
[422495511,1778998239000,-151.0,8.66e-05,2]
[422495510,1778998239000,-151.0,8.66e-05,2]
[422495513,1778998239000,-151.0,8.66e-05,2]
[422495521,1778998239000,-621.78829552,8.88e-05,2]
[422495519,1778998239000,-6223.16725941,8.824e-05,2]
[422495515,1778998239000,-163.126382,8.679e-05,2]
[422495520,1778998239000,-599.60298507,8.825e-05,2]
[422495517,1778998239000,-500.0,8.767e-05,2]
[422495518,1778998239000,-578.20924308,8.77e-05,2]
[422495514,1778998239000,-161.19271659,8.66e-05,2]
[422495427,1778998239000,-3000.0,7.18e-05,30]
[422495522,1778998239000,-38000.0,8.933e-05,2]
[422495525,1778998239000,-151.0,8.95e-05,2]
[422495524,1778998239000,-38000.0,8.941e-05,2]
[422495523,1778998239000,-644.79446246,8.935e-05,2]
[422495528,1778998239000,-38000.0,8.95e-05,2]
[422495531,1778998239000,-38000.0,8.959e-05,2]
[422495527,1778998239000,-151.0,8.95e-05,2]
[422495526,1778998239000,-151.0,8.95e-05,2]
[422495530,1778998239000,-38000.0,8.959e-05,2]
[422495533,1778998239000,-668.65185757,8.99e-05,2]
[422495508,1778998239000,-151.0,8.66e-05,2]
[422495516,1778998239000,-557.5788265,8.715e-05,2]
[422495556,1778998240000,-24866.94389787,9.7e-05,2]
[422495557,1778998240000,-46995.60684852,9.7e-05,2]
[422495622,1778998247000,-2946.74965203,9.7e-05,2]
[422495621,1778998247000,-192.3190961,9.506e-05,2]
[422495793,1778999432000,-882.8339059,6.772e-05,2]
[422495791,1778999432000,-4399.51325163,6.705e-05,2]
[422495831,1778999438000,-317.1660941,6.772e-05,2]
[422495843,1778999438000,-443.0,7.798e-05,2]
[422495847,1778999438000,-22273.75099742,8.097e-05,2]
[422495833,1778999438000,-5000.0,6.773e-05,2]
[422495841,1778999438000,-185.0,7.798e-05,2]
[422495837,1778999438000,-152.0,7.682e-05,7]
[422495835,1778999438000,-445.88783574,6.807e-05,2]
[422495839,1778999438000,-246.208,7.798e-05,2]
[422495844,1778999438000,-800.0,8.049e-05,2]
[422495846,1778999438000,-284.973,8.09e-05,2]
[422495863,1778999438000,-389.7669006,8.764e-05,2]
[422495853,1778999438000,-184.3565779,8.667e-05,2]
[422495851,1778999438000,-1219.9442024,8.603e-05,2]
[422495856,1778999438000,-800.0,8.694e-05,2]
[422495865,1778999438000,-12172.682117,8.765e-05,2]
[422495857,1778999438000,-500.0,8.764e-05,2]
[422495873,1778999438000,-400.02095422,8.765e-05,2]
[422495859,1778999438000,-280.87112336,8.764e-05,2]
[422495849,1778999438000,-800.0,8.097e-05,2]
[422495861,1778999438000,-500.0,8.764e-05,2]
[422495877,1778999438000,-6144.74578407,8.765e-05,2]
[422495987,1778999441000,-831.74568273,8.765e-05,2]
[422495985,1778999441000,-4369.70325648,8.765e-05,2]
[422496359,1778999443000,-2577.41014851,8.765e-05,2]
[422496363,1778999443000,-201.43471339,8.815e-05,2]
[422496350,1778999443000,-446.67417708,8.765e-05,2]
[422496367,1778999443000,-500.0,8.83e-05,2]
[422496357,1778999443000,-15863.41812602,8.765e-05,2]
[422496361,1778999443000,-526.14764617,8.807e-05,2]
[422496373,1778999443000,-2592.94478784,8.865e-05,2]
[422496369,1778999443000,-2389.5034048,8.845e-05,2]
[422496371,1778999443000,-1814.5439545,8.845e-05,2]
[422496365,1778999443000,-537.6845,8.815e-05,2]
[422496376,1778999444000,-1982.93054332,9.033e-05,2]
[422496378,1778999444000,-2831.59026427,9.057e-05,2]
[422496380,1778999444000,-927.1608562,9.057e-05,2]
[422496383,1778999444000,-1891.0220345,9.057e-05,2]
[422496397,1778999444000,-500.68,9.057e-05,2]
[422496405,1778999444000,-418.93857618,9.057e-05,2]
[422496407,1778999444000,-797.9436118,9.057e-05,2]
[422496375,1778999444000,-1979.57333156,8.865e-05,2]
[422496741,1778999446000,-3953.32521728,9.057e-05,2]
[422496743,1778999446000,-2107.73367672,9.157e-05,2]
[422496807,1778999447000,-160.0,9.39e-05,2]
[422496816,1778999447000,-933.036588,9.586e-05,2]
[422496814,1778999447000,-500.0,9.586e-05,2]
[422496812,1778999447000,-100000.0,9.586e-05,2]
[422496819,1778999447000,-933.036588,9.586e-05,2]
[422496818,1778999447000,-933.036588,9.586e-05,2]
[422496810,1778999447000,-800.0,9.524e-05,2]
[422496808,1778999447000,-192.3190961,9.506e-05,2]
[422496795,1778999447000,-3747.63130506,9.218e-05,2]
[422496753,1778999447000,-366.0,9.218e-05,2]
[422496803,1778999447000,-160.0,9.39e-05,2]
[422496801,1778999447000,-800.0,9.237e-05,2]
[422496793,1778999447000,-907.85568781,9.218e-05,2]
[422496799,1778999447000,-589.57152607,9.218e-05,2]
[422496797,1778999447000,-3640.41066888,9.218e-05,2]
[422496749,1778999447000,-345.72418935,9.218e-05,2]
[422496747,1778999447000,-800.0,9.162e-05,2]
[422496745,1778999447000,-2037.82246822,9.157e-05,2]
[422496825,1778999447000,-933.036588,9.586e-05,2]
[422496805,1778999447000,-161.67668242,9.39e-05,2]
[422496821,1778999447000,-535.19995408,9.586e-05,2]
[422496840,1778999447000,-933.036588,9.586e-05,2]
[422496828,1778999447000,-933.036588,9.586e-05,2]
[422496824,1778999447000,-933.036588,9.586e-05,2]
[422496869,1778999447000,-5000.0,9.716e-05,2]
[422496871,1778999447000,-416.00737986,9.72e-05,2]
[422496867,1778999447000,-5000.0,9.716e-05,2]
[422496859,1778999447000,-18795.29616707,9.7e-05,2]
[422496865,1778999447000,-5000.0,9.716e-05,2]
[422496863,1778999447000,-5000.0,9.716e-05,2]
[422496856,1778999447000,-4246.5495791,9.7e-05,2]
[422496854,1778999447000,-56697.0880221,9.7e-05,2]
[422496852,1778999447000,-800.0,9.637e-05,2]
[422496861,1778999447000,-5038.55703775,9.716e-05,2]
[422496834,1778999447000,-933.036588,9.586e-05,2]
[422496846,1778999447000,-933.036588,9.586e-05,2]
[422496850,1778999447000,-933.036588,9.586e-05,2]
[422496838,1778999447000,-933.036588,9.586e-05,2]
[422496836,1778999447000,-933.036588,9.586e-05,2]
[422496843,1778999447000,-933.036588,9.586e-05,2]
[422496832,1778999447000,-933.036588,9.586e-05,2]
[422496842,1778999447000,-933.036588,9.586e-05,2]
[422496848,1778999447000,-933.036588,9.586e-05,2]
[422496830,1778999447000,-933.036588,9.586e-05,2]
[422499426,1779000632000,-800.0,7.687e-05,2]
[422499424,1779000632000,-440.90159173,7.204e-05,2]
[422499422,1779000632000,-151.0,6.814e-05,2]
[422499420,1779000632000,-940.45922413,6.746e-05,2]
[422499401,1779000632000,-336.531683,6.612e-05,2]
[422499405,1779000632000,-720.07954133,6.612e-05,2]
[422499403,1779000632000,-377.09620373,6.612e-05,2]
[422499407,1779000632000,-666.37313739,6.679e-05,2]
[422499428,1779000632000,-151.0,7.741e-05,2]
[422499418,1779000632000,-4333.62686261,6.679e-05,2]
[422499429,1779000632000,-160.0,7.84e-05,2]
[422499440,1779000632000,-160.0,8.563e-05,2]
[422499433,1779000632000,-1706.0,8e-05,2]
[422499444,1779000632000,-160.0,8.563e-05,2]
[422499437,1779000632000,-443.0,8.087e-05,2]
[422499435,1779000632000,-800.0,8.023e-05,2]
[422499442,1779000632000,-161.67668242,8.563e-05,2]
[422499438,1779000632000,-800.0,8.476e-05,2]
[422499450,1779000632000,-500.0,8.857e-05,2]
[422499446,1779000632000,-86.11239986,8.822e-05,2]
[422499448,1779000632000,-95.54353915,8.822e-05,2]
[422499452,1779000632000,-31.14827844,8.9e-05,2]
[422499431,1779000632000,-800.0,7.851e-05,2]
[422499560,1779000638000,-500.0,9.172e-05,2]
[422499538,1779000638000,-160.0,8.9e-05,2]
[422499544,1779000638000,-500.0,9.172e-05,2]
[422499548,1779000638000,-500.0,9.172e-05,2]
[422499535,1779000638000,-5000.0,6.546e-05,2]
[422499546,1779000638000,-287.04512967,9.172e-05,2]
[422499540,1779000638000,-537.6845,9.152e-05,2]
[422499556,1779000638000,-307.45968158,9.172e-05,2]
[422499537,1779000638000,-128.85172156,8.9e-05,2]
[422499542,1779000638000,-500.0,9.172e-05,2]
[422499550,1779000638000,-500.0,9.172e-05,2]
[422499552,1779000638000,-500.0,9.172e-05,2]
[422499558,1779000638000,-500.0,9.172e-05,2]
[422499562,1779000638000,-500.0,9.172e-05,2]
[422499576,1779000638000,-500.0,9.225e-05,2]
[422499564,1779000638000,-520.26387825,9.204e-05,2]
[422499574,1779000638000,-500.0,9.225e-05,2]
[422499578,1779000638000,-500.0,9.225e-05,2]
[422499570,1779000638000,-193.24217337,9.225e-05,2]
[422499572,1779000638000,-500.0,9.225e-05,2]
[422499568,1779000638000,-245.10106504,9.225e-05,2]
[422499554,1779000638000,-500.0,9.172e-05,2]
[422499566,1779000638000,-500.0,9.225e-05,2]
[422499603,1779000639000,-500.0,9.225e-05,2]
[422499617,1779000639000,-1202.05235176,9.4e-05,2]
[422499628,1779000639000,-774.42036804,9.497e-05,2]
[422499611,1779000639000,-500.0,9.225e-05,2]
[422499605,1779000639000,-500.0,9.225e-05,2]
[422499607,1779000639000,-500.0,9.225e-05,2]
[422499609,1779000639000,-500.0,9.225e-05,2]
[422499600,1779000639000,-500.0,9.225e-05,2]
[422499582,1779000639000,-500.0,9.225e-05,2]
[422499596,1779000639000,-500.0,9.225e-05,2]
[422499594,1779000639000,-32.02722821,9.225e-05,2]
[422499591,1779000639000,-467.97277179,9.225e-05,2]
[422499589,1779000639000,-500.0,9.225e-05,2]
[422499626,1779000639000,-544.18544511,9.497e-05,2]
[422499584,1779000639000,-500.0,9.225e-05,2]
[422499580,1779000639000,-500.0,9.225e-05,2]
[422499598,1779000639000,-500.0,9.225e-05,2]
[422499623,1779000639000,-500.0,9.497e-05,2]
[422499637,1779000639000,-774.42036804,9.497e-05,2]
[422499621,1779000639000,-280.87112336,9.497e-05,2]
[422499646,1779000639000,-774.42036804,9.497e-05,2]
[422499649,1779000639000,-373.9975447,9.497e-05,2]
[422499644,1779000639000,-774.42036804,9.497e-05,2]
[422499642,1779000639000,-774.42036804,9.497e-05,2]
[422499613,1779000639000,-488.47506386,9.225e-05,2]
[422499640,1779000639000,-774.42036804,9.497e-05,2]
[422499634,1779000639000,-224.63996786,9.497e-05,2]
[422499636,1779000639000,-774.42036804,9.497e-05,2]
[422499648,1779000639000,-774.42036804,9.497e-05,2]
[422499616,1779000639000,-12172.682117,9.399e-05,2]
[422499630,1779000639000,-500.0,9.497e-05,2]
[422499619,1779000639000,-160.0,9.4e-05,2]
[422499620,1779000639000,-265.059,9.497e-05,2]
[422499631,1779000639000,-774.42036804,9.497e-05,2]
[422499615,1779000639000,-597.92968172,9.378e-05,2]
[422499625,1779000639000,-500.0,9.497e-05,2]
[422499618,1779000639000,-160.0,9.4e-05,2]
[422499889,1779000641000,-331.77845148,9.172e-05,2]
[422499881,1779000641000,-415.519,9.172e-05,2]
[422499885,1779000641000,-500.0,9.172e-05,2]
[422499883,1779000641000,-84.481,9.172e-05,2]
[422499887,1779000641000,-500.0,9.172e-05,2]
[422500269,1779000644000,-500.0,9.172e-05,2]
[422500276,1779000644000,-322.83556729,9.172e-05,2]
[422500267,1779000644000,-168.22154852,9.172e-05,2]
[422500281,1779000644000,-774.42036804,9.497e-05,2]
[422500272,1779000644000,-500.0,9.172e-05,2]
[422500278,1779000644000,-400.42282334,9.497e-05,2]
[422500274,1779000644000,-500.0,9.172e-05,2]
[422500285,1779000644000,-547.20995883,9.497e-05,2]
[422500291,1779000644000,-365.47256947,9.497e-05,2]
[422500283,1779000644000,-227.21040921,9.497e-05,2]
[422500287,1779000644000,-774.42036804,9.497e-05,2]
[422500289,1779000644000,-774.42036804,9.497e-05,2]
[422500321,1779000644000,-93172.83700023,9.498e-05,2]
[422500311,1779000644000,-2023.48845692,9.498e-05,2]
[422500309,1779000644000,-4753.11244523,9.498e-05,2]
[422500323,1779000644000,-551.706271,9.499e-05,2]
[422500326,1779000644000,-16285.56768733,9.5e-05,2]
[422500295,1779000644000,-774.42036804,9.497e-05,2]
[422500297,1779000644000,-50.56209762,9.498e-05,2]
[422500293,1779000644000,-408.94779857,9.497e-05,2]
[422500695,1779000647000,-160.0,9.6e-05,2]
[422500691,1779000647000,-18427.99326667,9.542e-05,2]
[422500684,1779000647000,-149673.43231267,9.5e-05,2]
[422500703,1779000647000,-151.0,9.621e-05,2]
[422500686,1779000647000,-160.0,9.5e-05,2]
[422500705,1779000647000,-151.0,9.621e-05,2]
[422500709,1779000647000,-11178.39489345,9.663e-05,2]
[422500699,1779000647000,-151.0,9.621e-05,2]
[422500687,1779000647000,-160.0,9.5e-05,2]
[422500701,1779000647000,-151.0,9.621e-05,2]
[422500689,1779000647000,-192.31909611,9.526e-05,2]
[422500707,1779000647000,-151.0,9.621e-05,2]
[422500697,1779000647000,-151.0,9.621e-05,2]